[Event "SS Manhem Chess Week GM and IM tournaments 2018"]
[Site "Molnlycke kulturhus, Biblioteksgatan 2, Molnlycke, Sweden"]
[Date "2018.08.16"]
[Round "8.10"]
[White "Kucuksari, Kaan"]
[Black "Pantzar, Milton"]
[Result "1-0"]
[TimeControl "90 minutes for 40 moves + 30 minutes for the rest of the game + 30 seconds per move from move one."]
[WhiteTitle "FM"]
[BlackTitle "FM"]
[WhiteFideId "6380166"]
[BlackFideId "1721003"]
[WhiteElo "2329"]
[BlackElo "2306"]

1. d4 {[%clk 01:30:59]} {[%emt 00:00:01]} Nf6 {[%clk 01:30:53]} {[%emt
00:00:07]} 2. Nf3 {[%clk 01:31:24]} {[%emt 00:00:05]} b6 {[%clk 01:31:18]}
{[%emt 00:00:06]} 3. c4 {[%clk 01:31:19]} {[%emt 00:00:34]} Bb7 {[%clk
01:31:31]} {[%emt 00:00:17]} 4. g3 {[%clk 01:31:28]} {[%emt 00:00:21]} e6
{[%clk 01:31:41]} {[%emt 00:00:20]} 5. Bg2 {[%clk 01:31:40]} {[%emt 00:00:18]}
Bb4+ {[%clk 01:31:59]} {[%emt 00:00:13]} 6. Bd2 {[%clk 01:31:53]} {[%emt
00:00:16]} Be7 {[%clk 01:32:13]} {[%emt 00:00:16]} 7. O-O {[%clk 01:31:50]}
{[%emt 00:00:33]} O-O {[%clk 01:32:21]} {[%emt 00:00:20]} 8. Nc3 {[%clk
01:31:17]} {[%emt 00:01:05]} c6 {[%clk 01:32:20]} {[%emt 00:00:31]} 9. e4
{[%clk 01:28:32]} {[%emt 00:03:15]} d5 {[%clk 01:32:17]} {[%emt 00:00:33]} 10.
e5 {[%clk 01:26:22]} {[%emt 00:02:41]} Ne4 {[%clk 01:32:38]} {[%emt 00:00:08]}
11. cxd5 {[%clk 01:21:45]} {[%emt 00:05:08]} cxd5 {[%clk 01:29:37]} {[%emt
00:03:31]} 12. Re1 {[%clk 01:22:09]} {[%emt 00:00:06]} Nxd2 {[%clk 01:20:11]}
{[%emt 00:09:56]} 13. Qxd2 {[%clk 01:21:05]} {[%emt 00:01:34]} Nc6 {[%clk
01:20:17]} {[%emt 00:00:24]} 14. Bf1 {[%clk 01:19:40]} {[%emt 00:01:55]} Na5
{[%clk 01:13:54]} {[%emt 00:06:54]} 15. Bd3 {[%clk 01:20:02]} {[%emt 00:00:08]}
Nc4 {[%clk 01:12:10]} {[%emt 00:02:13]} 16. Qc2 {[%clk 01:16:41]} {[%emt
00:03:51]} g6 {[%clk 00:58:38]} {[%emt 00:14:02]} 17. Nd2 {[%clk 01:13:49]}
{[%emt 00:03:22]} Rc8 {[%clk 00:50:34]} {[%emt 00:08:35]} 18. Nxc4 {[%clk
01:11:55]} {[%emt 00:02:23]} dxc4 {[%clk 00:50:28]} {[%emt 00:00:37]} 19. Be4
{[%clk 01:12:17]} {[%emt 00:00:08]} Bxe4 {[%clk 00:38:00]} {[%emt 00:12:58]} 20.
Rxe4 {[%clk 01:06:54]} {[%emt 00:05:53]} Bb4 {[%clk 00:37:07]} {[%emt
00:01:22]} 21. a3 {[%clk 01:01:18]} {[%emt 00:06:07]} Bxc3 {[%clk 00:35:28]}
{[%emt 00:02:08]} 22. bxc3 {[%clk 01:01:27]} {[%emt 00:00:21]} b5 {[%clk
00:31:01]} {[%emt 00:04:58]} 23. Rae1 {[%clk 00:45:49]} {[%emt 00:16:07]} Qe7
{[%clk 00:28:37]} {[%emt 00:02:54]} 24. Rb1 {[%clk 00:28:19]} {[%emt 00:18:00]}
Qxa3 {[%clk 00:24:39]} {[%emt 00:04:28]} 25. Qd2 {[%clk 00:27:56]} {[%emt
00:00:53]} a6 {[%clk 00:22:57]} {[%emt 00:02:13]} 26. h4 {[%clk 00:24:47]}
{[%emt 00:03:38]} Rc7 {[%clk 00:19:02]} {[%emt 00:04:25]} 27. h5 {[%clk
00:23:14]} {[%emt 00:02:04]} Rb8 {[%clk 00:17:37]} {[%emt 00:01:54]} 28. hxg6
{[%clk 00:19:22]} {[%emt 00:04:22]} fxg6 {[%clk 00:16:32]} {[%emt 00:01:35]} 29.
d5 {[%clk 00:19:51]} exd5 {[%clk 00:14:24]} {[%emt 00:02:39]} 30. Qxd5+ {[%clk
00:20:19]} {[%emt 00:00:02]} Kg7 {[%clk 00:13:32]} {[%emt 00:01:21]} 31. e6
{[%clk 00:18:00]} {[%emt 00:02:50]} Qc5 {[%clk 00:12:46]} {[%emt 00:01:15]} 32.
Qd2 {[%clk 00:17:13]} {[%emt 00:01:16]} Re7 {[%clk 00:10:07]} {[%emt 00:03:10]}
33. Rbe1 {[%clk 00:12:52]} {[%emt 00:04:50]} Rf8 {[%clk 00:09:57]} {[%emt
00:00:40]} 34. Rd4 {[%clk 00:11:58]} {[%emt 00:01:24]} Rf5 {[%clk 00:04:12]}
{[%emt 00:06:15]} 35. Rd7 {[%clk 00:08:22]} {[%emt 00:04:06]} h5 {[%clk
00:04:10]} {[%emt 00:00:32]} 36. Ra1 {[%clk 00:06:19]} {[%emt 00:02:33]} Rf3
{[%clk 00:01:12]} {[%emt 00:03:28]} 37. Rxe7+ {[%clk 00:04:53]} {[%emt
00:01:56]} Qxe7 {[%clk 00:01:41]} 38. Rxa6 {[%clk 00:04:37]} {[%emt 00:00:46]}
Rd3 {[%clk 00:01:22]} {[%emt 00:00:49]} 39. Qe1 {[%clk 00:02:28]} {[%emt
00:02:27]} Rd5 {[%clk 00:00:36]} {[%emt 00:01:29]} 40. Qe4 {[%clk 00:00:40]}
{[%emt 00:02:17]} Qb7 {[%clk 00:00:39]} {[%emt 00:00:27]} 41. Kh2 {[%clk
00:06:31]} {[%emt 00:24:39]} Qxa6 {[%clk 00:23:18]} {[%emt 00:07:51]} 42. e7
{[%clk 00:06:56]} {[%emt 00:00:05]} Qa7 {[%clk 00:23:14]} {[%emt 00:00:34]} 43.
e8=Q {[%clk 00:06:48]} {[%emt 00:00:38]} Qxf2+ {[%clk 00:23:35]} {[%emt
00:00:09]} 44. Qg2 {[%clk 00:07:16]} {[%emt 00:00:01]} Qxg2+ {[%clk 00:23:49]}
{[%emt 00:00:17]} 45. Kxg2 {[%clk 00:07:45]} {[%emt 00:00:01]} Rf5 {[%clk
00:24:12]} {[%emt 00:00:07]} 46. Qe7+ {[%clk 00:07:12]} {[%emt 00:01:03]} Kg8
{[%clk 00:23:13]} {[%emt 00:01:29]} 47. Kh3 {[%clk 00:04:15]} {[%emt 00:03:26]}
Kh8 {[%clk 00:23:05]} {[%emt 00:00:37]} 48. Kh4 {[%clk 00:04:38]} {[%emt
00:00:08]} Kg8 {[%clk 00:23:13]} {[%emt 00:00:22]} 49. Qd7 {[%clk 00:03:41]}
{[%emt 00:01:27]} Kh8 {[%clk 00:22:40]} {[%emt 00:01:04]} 50. Qd4+ {[%clk
00:03:58]} {[%emt 00:00:13]} Kg8 {[%clk 00:22:33]} {[%emt 00:00:37]} 51. Qe3
{[%clk 00:04:12]} {[%emt 00:00:16]} Kg7 {[%clk 00:18:35]} {[%emt 00:04:29]} 52.
Qa7+ {[%clk 00:04:29]} {[%emt 00:00:13]} Kg8 {[%clk 00:18:53]} {[%emt
00:00:12]} 53. Kh3 {[%clk 00:04:58]} {[%emt 00:00:01]} Kh8 {[%clk 00:18:56]}
{[%emt 00:00:26]} 54. Qc7 {[%clk 00:05:23]} {[%emt 00:00:04]} Kg8 {[%clk
00:19:10]} {[%emt 00:00:17]} 55. Qb8+ {[%clk 00:05:52]} Kg7 {[%clk 00:19:22]}
{[%emt 00:00:18]} 56. Qb7+ {[%clk 00:06:22]} Kg8 {[%clk 00:19:43]} {[%emt
00:00:08]} 57. Qa8+ {[%clk 00:06:51]} Kg7 {[%clk 00:20:01]} {[%emt 00:00:13]}
58. Qe8 {[%clk 00:07:20]} Kh7 {[%clk 00:20:14]} {[%emt 00:00:17]} 59. Qd7+
{[%clk 00:07:46]} {[%emt 00:00:04]} Kg8 {[%clk 00:20:38]} {[%emt 00:00:06]} 60.
Qb7 {[%clk 00:07:53]} {[%emt 00:00:21]} Kh8 {[%clk 00:21:03]} {[%emt 00:00:07]}
61. Kh4 {[%clk 00:08:13]} {[%emt 00:00:09]} Kg8 {[%clk 00:21:28]} {[%emt
00:00:06]} 62. g4 {[%clk 00:08:40]} {[%emt 00:00:04]} hxg4 {[%clk 00:21:44]}
{[%emt 00:00:13]} 63. Kxg4 {[%clk 00:09:09]} {[%emt 00:00:01]} Kh8 {[%clk
00:21:57]} {[%emt 00:00:16]} 64. Qh1+ {[%clk 00:09:38]} {[%emt 00:00:01]} Kg7
{[%clk 00:22:17]} {[%emt 00:00:11]} 65. Qh4 {[%clk 00:09:56]} {[%emt 00:00:08]}
Rf7 {[%clk 00:22:03]} {[%emt 00:00:46]} 66. Qh3 {[%clk 00:10:07]} {[%emt
00:00:18]} Rf8 {[%clk 00:21:48]} {[%emt 00:00:47]} 67. Qh1 {[%clk 00:10:17]}
{[%emt 00:00:19]} Rf7 {[%clk 00:21:53]} {[%emt 00:00:26]} 68. Qg2 {[%clk
00:10:13]} {[%emt 00:00:33]} Rf5 {[%clk 00:21:50]} {[%emt 00:00:35]} 69. Qh2
{[%clk 00:10:39]} {[%emt 00:00:03]} Rh5 {[%clk 00:16:18]} {[%emt 00:06:03]} 70.
Qc7+ {[%clk 00:11:03]} {[%emt 00:00:04]} Kg8 {[%clk 00:16:43]} {[%emt
00:00:07]} 71. Kf4 {[%clk 00:11:29]} {[%emt 00:00:04]} Rf5+ {[%clk 00:16:57]}
{[%emt 00:00:17]} 72. Ke3 {[%clk 00:11:58]} {[%emt 00:00:01]} Kh8 {[%clk
00:16:50]} {[%emt 00:00:37]} 73. Kd2 {[%clk 00:12:26]} {[%emt 00:00:02]} Kg8
{[%clk 00:17:07]} {[%emt 00:00:13]} 74. Kc1 {[%clk 00:12:54]} {[%emt 00:00:01]}
Kh8 {[%clk 00:16:50]} {[%emt 00:00:47]} 75. Kb2 {[%clk 00:13:23]} Kg8 {[%clk
00:17:15]} {[%emt 00:00:05]} 76. Ka3 {[%clk 00:13:52]} {[%emt 00:00:02]} Kh8
{[%clk 00:17:35]} {[%emt 00:00:09]} 77. Kb4 {[%clk 00:14:21]} {[%emt 00:00:01]}
Kg8 {[%clk 00:17:56]} {[%emt 00:00:09]} 78. Ka5 {[%clk 00:14:50]} {[%emt
00:00:01]} Kh8 {[%clk 00:18:06]} {[%emt 00:00:20]} 79. Kb6 {[%clk 00:14:46]}
{[%emt 00:00:33]} Kg8 {[%clk 00:18:28]} {[%emt 00:00:08]} 80. Kc6 {[%clk
00:15:04]} {[%emt 00:00:12]} Kh8 {[%clk 00:18:48]} {[%emt 00:00:11]} 81. Kd6
{[%clk 00:15:02]} {[%emt 00:00:31]} Kg8 {[%clk 00:16:15]} {[%emt 00:03:04]} 82.
Ke6 {[%clk 00:15:24]} {[%emt 00:00:07]} Kh8 {[%clk 00:16:33]} {[%emt 00:00:12]}
83. Qh2+ {[%clk 00:11:14]} {[%emt 00:04:39]} Kg7 {[%clk 00:16:41]} {[%emt
00:00:23]} 84. Qh4 {[%clk 00:11:22]} {[%emt 00:00:22]} Rf7 {[%clk 00:14:55]}
{[%emt 00:02:16]} 85. Qd4+ {[%clk 00:06:59]} {[%emt 00:04:53]} Kg8 {[%clk
00:15:17]} {[%emt 00:00:09]} 86. Qe3 {[%clk 00:07:20]} {[%emt 00:00:09]} 1-0